fUSD/lending_fUSD_20260529
["ID","MTS","AMOUNT","RATE_DAILY","PERIOD"]
[423345975,1780065081000,-2000.0,0.00031839,2]
[423345977,1780065081000,-1545.0,0.00031845,7]
[423345980,1780065081000,-153.0,0.00031845,7]
[423345984,1780065081000,-1000.0,0.0003188,26]
[423345985,1780065081000,-200.0,0.000319,12]
[423345988,1780065081000,-1442.0927117,0.00031978,7]
[423345990,1780065081000,-884.15321105,0.00031978,7]
[423345991,1780065081000,-976.68733385,0.00031978,7]
[423345992,1780065081000,-772.63561762,0.00031978,7]
[423345989,1780065081000,-842.51474654,0.00031978,7]
[423345993,1780065081000,-765.11324478,0.00031978,7]
[423345995,1780065081000,-955.59889369,0.00031978,7]
[423345987,1780065081000,-2318.0,0.00031966,3]
[423345986,1780065081000,-1590.0,0.00031966,3]
[423345939,1780065081000,-151.0,0.000315,7]
[423345983,1780065081000,-150.0,0.00031858,2]
[423345963,1780065081000,-879.0,0.00031802,30]
[423345982,1780065081000,-1590.0,0.00031855,3]
[423345964,1780065081000,-1658.0,0.00031802,30]
[423345967,1780065081000,-2696.0,0.00031802,30]
[423345934,1780065081000,-151.0,0.000315,7]
[423345941,1780065081000,-1561.02,0.00031507,30]
[423345937,1780065081000,-4431.499608,0.000315,7]
[423345948,1780065081000,-2318.0,0.00031695,3]
[423345949,1780065081000,-151.0,0.00031705,7]
[423345947,1780065081000,-1590.0,0.00031695,3]
[423345953,1780065081000,-2318.0,0.0003172,3]
[423345954,1780065081000,-163.0,0.0003172,3]
[423345950,1780065081000,-1590.0,0.0003172,3]
[423345952,1780065081000,-2318.0,0.0003172,3]
[423345951,1780065081000,-2318.0,0.0003172,3]
[423345955,1780065081000,-2318.0,0.0003172,3]
[423345969,1780065081000,-912.0,0.00031802,30]
[423345946,1780065081000,-2318.0,0.00031646,3]
[423345961,1780065081000,-473.069,0.00031739,30]
[423345968,1780065081000,-818.0,0.00031802,30]
[423345962,1780065081000,-2019.51,0.00031749,2]
[423345958,1780065081000,-1000.0,0.00031722,81]
[423345965,1780065081000,-584.0,0.00031802,30]
[423345960,1780065081000,-7144.577,0.00031739,30]
[423345959,1780065081000,-996.0,0.00031739,9]
[423345956,1780065081000,-2362.0,0.0003172,3]
[423345957,1780065081000,-2318.0,0.0003172,3]
[423345966,1780065081000,-571.0,0.00031802,30]
[423346039,1780065082000,-1726.58779556,0.00032,120]
[423346034,1780065082000,-969.5667604,0.00032,120]
[423346044,1780065082000,-184.14240188,0.00032,30]
[423346036,1780065082000,-3429.53145366,0.00032,120]
[423346024,1780065082000,-762.18850435,0.00032,120]
[423346032,1780065082000,-2601.99273559,0.00032,120]
[423346026,1780065082000,-1142.34844526,0.00032,120]
[423346028,1780065082000,-1092.31305806,0.00032,120]
[423346027,1780065082000,-427.97568514,0.00032,120]
[423346023,1780065082000,-1191.80241152,0.00032,120]
[423346040,1780065082000,-304.51568236,0.00032,120]
[423346025,1780065082000,-1224.50316288,0.00032,120]
[423346033,1780065082000,-1232.7247864,0.00032,120]
[423346050,1780065082000,-700.0,0.00032,2]
[423346038,1780065082000,-606.26788255,0.00032,120]
[423346041,1780065082000,-6574.14597932,0.00032,120]
[423346043,1780065082000,-187.97575575,0.00032,30]
[423346037,1780065082000,-1000.0,0.00032,120]
[423346042,1780065082000,-233.83286829,0.00032,30]
[423346049,1780065082000,-250.0,0.00032,120]
[423346053,1780065082000,-1027.7869137,0.00032002,7]
[423346055,1780065082000,-1617.89740584,0.00032002,7]
[423346047,1780065082000,-162.08,0.00032,120]
[423346051,1780065082000,-2500.0,0.00032,33]
[423346045,1780065082000,-1762.99244633,0.00032,2]
[423346021,1780065082000,-1474.49190058,0.00032,120]
[423346035,1780065082000,-523.69276618,0.00032,120]
[423346030,1780065082000,-735.20558108,0.00032,120]
[423345997,1780065082000,-1044.18462521,0.00031978,7]
[423346029,1780065082000,-1116.6573321,0.00032,120]
[423345996,1780065082000,-767.20655078,0.00031978,7]
[423346052,1780065082000,-908.92817877,0.00032002,2]
[423345998,1780065082000,-810.18533561,0.00031978,7]
[423346008,1780065082000,-500.0,0.00031999,120]
[423346000,1780065082000,-932.16809612,0.00031978,7]
[423345999,1780065082000,-886.76725074,0.00031978,7]
[423346001,1780065082000,-1027.83717897,0.00031978,7]
[423346002,1780065082000,-3000.0,0.00031982,60]
[423346003,1780065082000,-500.0,0.00031982,60]
[423346005,1780065082000,-917.33300827,0.00031997,7]
[423346006,1780065082000,-500.0,0.00031999,120]
[423346004,1780065082000,-163.0,0.00031991,3]
[423346031,1780065082000,-643.66338713,0.00032,120]
[423346007,1780065082000,-500.0,0.00031999,30]
[423346010,1780065082000,-500.0,0.00031999,7]
[423346011,1780065082000,-542.96,0.00031999,2]
[423346012,1780065082000,-500.0,0.00031999,120]
[423346020,1780065082000,-1000.0,0.00032,120]
[423346014,1780065082000,-3283.62274669,0.00032,120]
[423346016,1780065082000,-1243.04091773,0.00032,120]
[423346013,1780065082000,-500.0,0.00031999,30]
[423346015,1780065082000,-848.71408364,0.00032,120]
[423346017,1780065082000,-2864.48198912,0.00032,120]
[423346019,1780065082000,-674.74610462,0.00032,120]
[423346018,1780065082000,-1884.39236652,0.00032,120]
[423346022,1780065082000,-644.61578253,0.00032,120]
[423346009,1780065082000,-500.0,0.00031999,120]
[423346054,1780065082000,-763.56480142,0.00032002,7]
[423346056,1780065082000,-885.44458847,0.00032002,7]
[423346046,1780065082000,-178.087383,0.00032,120]
[423346082,1780065082000,-163.0,0.00032052,3]
[423346088,1780065082000,-2000.0,0.00032205,2]
[423346091,1780065082000,-272.805013,0.00032205,2]
[423346092,1780065082000,-219.30504838,0.00032205,2]
[423346090,1780065082000,-272.805013,0.00032205,2]
[423346089,1780065082000,-10000.0,0.00032205,2]
[423346095,1780065082000,-214.83280219,0.00032205,2]
[423346103,1780065082000,-1000.0,0.00032232,90]
[423346104,1780065082000,-1000.0,0.00032232,60]
[423346105,1780065082000,-1000.0,0.00032256,27]
[423346094,1780065082000,-214.83280219,0.00032205,2]
[423346099,1780065082000,-1124.0,0.00032229,5]
[423346098,1780065082000,-163.0,0.0003222,3]
[423346100,1780065082000,-188.44606373,0.0003223,2]
[423346097,1780065082000,-1590.0,0.0003222,3]
[423346096,1780065082000,-7567.4,0.0003221,5]
[423346101,1780065082000,-1000.0,0.00032232,7]
[423346102,1780065082000,-1000.0,0.00032232,120]
[423346113,1780065082000,-493.905739,0.000323,7]
[423346112,1780065082000,-910.36122834,0.000323,2]
[423346110,1780065082000,-996.0,0.00032294,9]
[423346114,1780065082000,-493.905739,0.000323,7]
[423346106,1780065082000,-183.3,0.0003226,120]
[423346109,1780065082000,-1000.0,0.00032293,9]
[423346111,1780065082000,-6689.40706694,0.000323,120]
[423346108,1780065082000,-1590.0,0.00032286,11]
[423346048,1780065082000,-1312.66445638,0.00032,30]
[423346086,1780065082000,-1590.0,0.00032175,3]
[423346084,1780065082000,-2318.0,0.00032098,3]
[423346107,1780065082000,-1000.0,0.00032268,17]
[423346085,1780065082000,-350.0,0.00032171,2]
[423346087,1780065082000,-433.14031565,0.00032184,2]
[423346058,1780065082000,-821.66770728,0.00032002,7]
[423346062,1780065082000,-2318.0,0.00032015,3]
[423346061,1780065082000,-163.0,0.00032015,3]
[423346063,1780065082000,-825.11841493,0.00032021,7]
[423346065,1780065082000,-998.50342862,0.00032021,7]
[423346064,1780065082000,-821.36087227,0.00032021,7]
[423346060,1780065082000,-1859.51294556,0.00032002,7]
[423346059,1780065082000,-1711.80497459,0.00032002,7]
[423346066,1780065082000,-852.0590205,0.00032021,7]
[423346067,1780065082000,-826.43919643,0.0003204,7]
[423346068,1780065082000,-761.42340968,0.0003204,7]
[423346069,1780065082000,-885.06872695,0.0003204,7]
[423346057,1780065082000,-850.23247207,0.00032002,7]
[423346081,1780065082000,-1586.820872,0.00032044,2]
[423346071,1780065082000,-163.0,0.0003204,3]
[423346093,1780065082000,-219.30504838,0.00032205,2]
[423346083,1780065082000,-163.0,0.00032052,3]
[423346079,1780065082000,-171.734091,0.00032041,7]
[423346080,1780065082000,-1350000.0,0.00032044,2]
[423346076,1780065082000,-1590.0,0.0003204,3]
[423346073,1780065082000,-2318.0,0.0003204,3]
[423346075,1780065082000,-2318.0,0.0003204,3]
[423346072,1780065082000,-163.0,0.0003204,3]
[423346077,1780065082000,-163.0,0.0003204,3]
[423346078,1780065082000,-2318.0,0.0003204,3]
[423346070,1780065082000,-699.0,0.0003204,3]
[423346074,1780065082000,-2318.0,0.0003204,3]
[423346149,1780065083000,-7357.34,0.00032513,30]
[423346156,1780065083000,-1590.0,0.00032606,11]
[423346150,1780065083000,-1000.0,0.00032516,14]
[423346152,1780065083000,-1000.0,0.00032566,14]
[423346145,1780065083000,-1544.0,0.00032505,7]
[423346151,1780065083000,-409.0,0.00032521,2]
[423346148,1780065083000,-5642.8812041,0.00032505,2]
[423346146,1780065083000,-152.0,0.00032505,7]
[423346143,1780065083000,-1510.970504,0.000325,11]
[423346158,1780065083000,-163.0,0.00032606,11]
[423346147,1780065083000,-240.0,0.00032505,7]
[423346153,1780065083000,-350.0,0.00032571,6]
[423346157,1780065083000,-163.0,0.00032606,11]
[423346167,1780065083000,-139897.64117308,0.0003267,2]
[423346163,1780065083000,-2318.0,0.00032655,11]
[423346165,1780065083000,-350.0,0.00032667,4]
[423346159,1780065083000,-1000.0,0.00032632,28]
[423346161,1780065083000,-1590.0,0.00032655,11]
[423346162,1780065083000,-163.0,0.00032655,11]
[423346166,1780065083000,-500.7,0.00032668,2]
[423346164,1780065083000,-1590.0,0.00032655,11]
[423346168,1780065083000,-39710.35108486,0.0003267,2]
[423346176,1780065083000,-2318.0,0.0003268,11]
[423346169,1780065083000,-1478.2484,0.0003267,34]
[423346179,1780065083000,-200.0,0.000327,2]
[423346155,1780065083000,-500.0,0.00032603,7]
[423346172,1780065083000,-163.0,0.0003268,11]
[423346160,1780065083000,-1590.0,0.00032655,11]
[423346144,1780065083000,-350.0,0.000325,6]
[423346127,1780065083000,-1590.0,0.0003236,11]
[423346139,1780065083000,-1590.0,0.00032418,11]
[423346178,1780065083000,-291.0,0.000327,120]
[423346117,1780065083000,-372.127038,0.000323,7]
[423346115,1780065083000,-493.905739,0.000323,7]
[423346116,1780065083000,-493.905739,0.000323,7]
[423346119,1780065083000,-372.127038,0.000323,7]
[423346121,1780065083000,-372.127038,0.000323,7]
[423346130,1780065083000,-1590.0,0.0003236,11]
[423346118,1780065083000,-151.0,0.000323,7]
[423346129,1780065083000,-1590.0,0.0003236,11]
[423346120,1780065083000,-372.127038,0.000323,7]
[423346126,1780065083000,-1590.0,0.0003236,11]
[423346123,1780065083000,-1590.0,0.00032335,11]
[423346125,1780065083000,-1000.0,0.00032359,14]
[423346122,1780065083000,-182.0,0.00032311,120]
[423346124,1780065083000,-1000.0,0.00032354,5]
[423346128,1780065083000,-1590.0,0.0003236,11]
[423346131,1780065083000,-1590.0,0.0003236,11]
[423346132,1780065083000,-1590.0,0.0003236,11]
[423346133,1780065083000,-163.0,0.0003236,11]
[423346136,1780065083000,-163.0,0.0003236,11]
[423346138,1780065083000,-3650.25,0.000324,7]
[423346134,1780065083000,-2318.0,0.0003236,11]
[423346140,1780065083000,-1000.0,0.00032432,6]
[423346142,1780065083000,-1000.0,0.00032499,24]
[423346141,1780065083000,-1590.0,0.00032495,11]
[423346137,1780065083000,-6580.74,0.000324,7]
[423346135,1780065083000,-163.0,0.0003236,11]
[423346154,1780065083000,-1000.0,0.00032586,14]
[423346177,1780065083000,-150.0,0.000327,120]
[423346204,1780065083000,-334.0,0.00032814,30]
[423346170,1780065083000,-1478.24839,0.0003267,34]
[423346206,1780065083000,-2318.0,0.00032815,11]
[423346211,1780065083000,-150.0,0.0003285,120]
[423346210,1780065083000,-996.0,0.00032848,10]
[423346209,1780065083000,-1000.0,0.00032848,94]
[423346212,1780065083000,-291.0,0.0003285,120]
[423346216,1780065083000,-1730.51125404,0.0003287,7]
[423346214,1780065083000,-2318.0,0.0003286,11]
[423346215,1780065083000,-1000.0,0.00032868,14]
[423346213,1780065083000,-1000.0,0.00032859,16]
[423346218,1780065083000,-1011.01769585,0.0003287,7]
[423346228,1780065083000,-171.734091,0.00032874,14]
[423346217,1780065083000,-1086.68199493,0.0003287,7]
[423346207,1780065083000,-878.0,0.00032823,30]
[423346219,1780065083000,-1172.02480062,0.0003287,7]
[423346225,1780065083000,-1233.40461477,0.0003287,7]
[423346223,1780065083000,-1064.12070088,0.0003287,7]
[423346220,1780065083000,-927.16274114,0.0003287,7]
[423346226,1780065083000,-3578.46899556,0.0003287,7]
[423346221,1780065083000,-918.13589374,0.0003287,7]
[423346222,1780065083000,-952.89319574,0.0003287,7]
[423346229,1780065083000,-151.0,0.00032874,14]
[423346231,1780065083000,-1000.0,0.00032875,50]
[423346232,1780065083000,-8038.95177696,0.00032876,10]
[423346233,1780065083000,-4047.65107688,0.00032876,30]
[423346230,1780065083000,-204.489836,0.00032874,14]
[423346234,1780065083000,-58468.05876011,0.00032876,10]
[423346224,1780065083000,-1118.60171534,0.0003287,7]
[423346208,1780065083000,-1000.0,0.00032825,14]
[423346227,1780065083000,-405.70641793,0.0003287,120]
[423346199,1780065083000,-818.0,0.00032802,30]
[423346205,1780065083000,-219.0,0.00032814,30]
[423346173,1780065083000,-2318.0,0.0003268,11]
[423346171,1780065083000,-2291.47019397,0.0003267,2]
[423346174,1780065083000,-163.0,0.0003268,11]
[423346175,1780065083000,-166.0,0.0003268,11]
[423346181,1780065083000,-1000.0,0.00032714,14]
[423346183,1780065083000,-1000.0,0.00032734,15]
[423346186,1780065083000,-163.0,0.00032738,11]
[423346192,1780065083000,-291.0,0.000328,120]
[423346182,1780065083000,-18935.23521844,0.00032719,2]
[423346184,1780065083000,-1000.0,0.00032735,15]
[423346185,1780065083000,-200.0,0.00032735,2]
[423346189,1780065083000,-150.0,0.0003275,120]
[423346191,1780065083000,-150.0,0.000328,120]
[423346180,1780065083000,-1000.0,0.000327,2]
[423346187,1780065083000,-2318.0,0.00032738,11]
[423346201,1780065083000,-5486.0,0.00032802,30]
[423346188,1780065083000,-1000.0,0.00032739,14]
[423346196,1780065083000,-584.0,0.00032802,30]
[423346197,1780065083000,-571.0,0.00032802,30]
[423346198,1780065083000,-2696.0,0.00032802,30]
[423346202,1780065083000,-3000.0,0.00032804,60]
[423346194,1780065083000,-879.0,0.00032802,30]
[423346235,1780065083000,-7224.13490991,0.00032876,30]
[423346200,1780065083000,-912.0,0.00032802,30]
[423346193,1780065083000,-4919.76350059,0.000328,2]
[423346203,1780065083000,-352.0,0.00032814,30]
[423346190,1780065083000,-291.0,0.0003275,120]
[423346195,1780065083000,-1658.0,0.00032802,30]
[423346261,1780065084000,-1481.15917697,0.00032876,2]
[423346257,1780065084000,-500.0,0.00032876,2]
[423346258,1780065084000,-422.88035242,0.00032876,2]
[423346255,1780065084000,-395.98579856,0.00032876,2]
[423346264,1780065084000,-500.0,0.00032876,2]
[423346260,1780065084000,-1481.15917697,0.00032876,2]
[423346271,1780065084000,-500.0,0.00032876,2]
[423346262,1780065084000,-1481.15917697,0.00032876,2]
[423346265,1780065084000,-648.29154773,0.00032876,2]
[423346263,1780065084000,-1481.15917697,0.00032876,2]
[423346269,1780065084000,-500.0,0.00032876,2]
[423346256,1780065084000,-500.0,0.00032876,2]
[423346276,1780065084000,-500.0,0.00032876,2]
[423346273,1780065084000,-500.0,0.00032876,2]
[423346259,1780065084000,-1481.15917697,0.00032876,2]
[423346254,1780065084000,-500.0,0.00032876,2]
[423346245,1780065084000,-500.0,0.00032876,2]
[423346251,1780065084000,-500.0,0.00032876,2]
[423346266,1780065084000,-1740.36203293,0.00032876,2]
[423346239,1780065084000,-500.0,0.00032876,2]
[423346236,1780065084000,-413.23831007,0.00032876,2]
[423346238,1780065084000,-500.0,0.00032876,2]
[423346240,1780065084000,-500.0,0.00032876,2]
[423346241,1780065084000,-500.0,0.00032876,2]
[423346247,1780065084000,-500.0,0.00032876,2]
[423346242,1780065084000,-500.0,0.00032876,2]
[423346248,1780065084000,-500.0,0.00032876,2]
[423346249,1780065084000,-500.0,0.00032876,2]
[423346246,1780065084000,-500.0,0.00032876,2]
[423346250,1780065084000,-500.0,0.00032876,2]
[423346244,1780065084000,-500.0,0.00032876,2]
[423346243,1780065084000,-500.0,0.00032876,2]
[423346252,1780065084000,-500.0,0.00032876,2]
[423346253,1780065084000,-151.08003687,0.00032876,2]
[423346237,1780065084000,-500.0,0.00032876,2]
[423346267,1780065084000,-500.0,0.00032876,2]
[423346268,1780065084000,-500.0,0.00032876,2]
[423346289,1780065084000,-1000.0,0.00032877,10]
[423346291,1780065084000,-1000.0,0.00032877,10]
[423346295,1780065084000,-1000.0,0.00032877,10]
[423346293,1780065084000,-1000.0,0.00032877,10]
[423346300,1780065084000,-1000.0,0.00032877,10]
[423346297,1780065084000,-1000.0,0.00032877,10]
[423346292,1780065084000,-1000.0,0.00032877,10]
[423346298,1780065084000,-1000.0,0.00032877,10]
[423346301,1780065084000,-1000.0,0.00032877,10]
[423346302,1780065084000,-1000.0,0.00032877,10]
[423346306,1780065084000,-1000.0,0.00032877,10]
[423346305,1780065084000,-1000.0,0.00032877,10]
[423346304,1780065084000,-1000.0,0.00032877,10]
[423346270,1780065084000,-500.0,0.00032876,2]
[423346294,1780065084000,-1000.0,0.00032877,10]
[423346296,1780065084000,-1000.0,0.00032877,10]
[423346303,1780065084000,-1000.0,0.00032877,10]
[423346290,1780065084000,-1000.0,0.00032877,10]
[423346299,1780065084000,-1000.0,0.00032877,10]
[423346272,1780065084000,-500.0,0.00032876,2]
[423346275,1780065084000,-412.82675502,0.00032876,2]
[423346277,1780065084000,-500.0,0.00032876,2]
[423346282,1780065084000,-500.0,0.00032876,2]
[423346283,1780065084000,-500.0,0.00032876,2]
[423346280,1780065084000,-500.0,0.00032876,2]
[423346274,1780065084000,-500.0,0.00032876,2]
[423346278,1780065084000,-500.0,0.00032876,2]
[423346284,1780065084000,-1886.50574178,0.00032877,120]
[423346279,1780065084000,-500.0,0.00032876,2]
[423346281,1780065084000,-500.0,0.00032876,2]
[423346287,1780065084000,-1000.0,0.00032877,10]
[423346286,1780065084000,-1000.0,0.00032877,10]
[423346285,1780065084000,-1000.0,0.00032877,10]
[423346288,1780065084000,-1000.0,0.00032877,10]
[423346350,1780065085000,-1000.0,0.00032877,10]
[423346366,1780065085000,-588.040787,0.00032877,7]
[423346347,1780065085000,-1000.0,0.00032877,10]
[423346341,1780065085000,-1000.0,0.00032877,10]
[423346340,1780065085000,-1000.0,0.00032877,10]
[423346348,1780065085000,-1000.0,0.00032877,10]
[423346342,1780065085000,-1000.0,0.00032877,10]
[423346344,1780065085000,-1000.0,0.00032877,10]
[423346346,1780065085000,-1000.0,0.00032877,10]
[423346343,1780065085000,-1000.0,0.00032877,10]
[423346337,1780065085000,-1000.0,0.00032877,10]
[423346345,1780065085000,-1000.0,0.00032877,10]
[423346360,1780065085000,-588.040787,0.00032877,7]
[423346353,1780065085000,-588.040787,0.00032877,7]
[423346354,1780065085000,-162.4845,0.00032877,7]
[423346357,1780065085000,-2006.931191,0.00032877,7]
[423346351,1780065085000,-162.4845,0.00032877,7]
[423346358,1780065085000,-162.4845,0.00032877,7]
[423346355,1780065085000,-383.571562,0.00032877,7]
[423346356,1780065085000,-435.822462,0.00032877,7]
[423346352,1780065085000,-588.040787,0.00032877,7]
[423346359,1780065085000,-383.571562,0.00032877,7]
[423346361,1780065085000,-2006.931191,0.00032877,7]
[423346363,1780065085000,-381.32602,0.00032877,7]
[423346364,1780065085000,-162.4845,0.00032877,7]
[423346338,1780065085000,-1000.0,0.00032877,10]
[423346349,1780065085000,-1000.0,0.00032877,10]
[423346334,1780065085000,-1000.0,0.00032877,10]
[423346316,1780065085000,-1000.0,0.00032877,10]
[423346327,1780065085000,-1000.0,0.00032877,10]
[423346309,1780065085000,-1000.0,0.00032877,10]
[423346311,1780065085000,-1000.0,0.00032877,10]
[423346307,1780065085000,-1000.0,0.00032877,10]
[423346312,1780065085000,-1000.0,0.00032877,10]
[423346310,1780065085000,-1000.0,0.00032877,10]
[423346308,1780065085000,-1000.0,0.00032877,10]
[423346313,1780065085000,-1000.0,0.00032877,10]
[423346314,1780065085000,-1000.0,0.00032877,10]
[423346315,1780065085000,-1000.0,0.00032877,10]
[423346317,1780065085000,-1000.0,0.00032877,10]
[423346323,1780065085000,-1000.0,0.00032877,10]
[423346324,1780065085000,-1000.0,0.00032877,10]
[423346332,1780065085000,-1000.0,0.00032877,10]
[423346318,1780065085000,-1000.0,0.00032877,10]
[423346320,1780065085000,-1000.0,0.00032877,10]
[423346322,1780065085000,-1000.0,0.00032877,10]
[423346321,1780065085000,-1000.0,0.00032877,10]
[423346335,1780065085000,-1000.0,0.00032877,10]
[423346325,1780065085000,-1000.0,0.00032877,10]
[423346330,1780065085000,-1000.0,0.00032877,10]
[423346328,1780065085000,-1000.0,0.00032877,10]
[423346336,1780065085000,-1000.0,0.00032877,10]
[423346329,1780065085000,-1000.0,0.00032877,10]
[423346331,1780065085000,-1000.0,0.00032877,10]
[423346326,1780065085000,-1000.0,0.00032877,10]
[423346333,1780065085000,-1000.0,0.00032877,10]
[423346319,1780065085000,-1000.0,0.00032877,10]
[423346365,1780065085000,-435.822462,0.00032877,7]
[423346339,1780065085000,-1000.0,0.00032877,10]
[423346368,1780065085000,-2006.931191,0.00032877,7]
[423346398,1780065085000,-151.0,0.00032877,7]
[423346407,1780065085000,-321.629462,0.00032877,7]
[423346404,1780065085000,-975.098639,0.00032877,7]
[423346402,1780065085000,-212.051983,0.00032877,7]
[423346400,1780065085000,-316.834082,0.00032877,7]
[423346401,1780065085000,-212.051983,0.00032877,7]
[423346406,1780065085000,-975.098639,0.00032877,7]
[423346403,1780065085000,-212.051983,0.00032877,7]
[423346408,1780065085000,-232.200961,0.00032877,7]
[423346405,1780065085000,-232.200961,0.00032877,7]
[423346409,1780065085000,-975.098639,0.00032877,7]
[423346411,1780065085000,-232.200961,0.00032877,7]
[423346413,1780065085000,-975.098639,0.00032877,7]
[423346412,1780065085000,-295.212554,0.00032877,7]
[423346418,1780065085000,-295.212554,0.00032877,7]
[423346414,1780065085000,-321.629462,0.00032877,7]
[423346417,1780065085000,-321.629462,0.00032877,7]
[423346416,1780065085000,-295.212554,0.00032877,7]
[423346415,1780065085000,-232.200961,0.00032877,7]
[423346410,1780065085000,-321.629462,0.00032877,7]
[423346420,1780065085000,-295.212554,0.00032877,7]
[423346419,1780065085000,-1562.431122,0.00032877,7]
[423346422,1780065085000,-1562.431122,0.00032877,7]
[423346423,1780065085000,-454.250995,0.00032877,7]
[423346421,1780065085000,-1562.431122,0.00032877,7]
[423346424,1780065085000,-454.250995,0.00032877,7]
[423346425,1780065085000,-1562.431122,0.00032877,7]
[423346399,1780065085000,-212.051983,0.00032877,7]
[423346397,1780065085000,-316.834082,0.00032877,7]
[423346367,1780065085000,-622.855709,0.00032877,7]
[423346390,1780065085000,-151.0,0.00032877,7]
[423346369,1780065085000,-381.32602,0.00032877,7]
[423346370,1780065085000,-435.822462,0.00032877,7]
[423346371,1780065085000,-383.571562,0.00032877,7]
[423346362,1780065085000,-383.571562,0.00032877,7]
[423346372,1780065085000,-381.32602,0.00032877,7]
[423346374,1780065085000,-358.345821,0.00032877,7]
[423346384,1780065085000,-622.855709,0.00032877,7]
[423346389,1780065085000,-276.892695,0.00032877,7]
[423346373,1780065085000,-2006.931191,0.00032877,7]
[423346377,1780065085000,-655.179664,0.00032877,7]
[423346379,1780065085000,-358.345821,0.00032877,7]
[423346376,1780065085000,-622.855709,0.00032877,7]
[423346382,1780065085000,-276.892695,0.00032877,7]
[423346375,1780065085000,-435.822462,0.00032877,7]
[423346381,1780065085000,-655.179664,0.00032877,7]
[423346383,1780065085000,-358.345821,0.00032877,7]
[423346392,1780065085000,-276.892695,0.00032877,7]
[423346396,1780065085000,-151.0,0.00032877,7]
[423346394,1780065085000,-316.834082,0.00032877,7]
[423346393,1780065085000,-151.0,0.00032877,7]
[423346386,1780065085000,-276.892695,0.00032877,7]
[423346395,1780065085000,-151.0,0.00032877,7]
[423346388,1780065085000,-655.179664,0.00032877,7]
[423346387,1780065085000,-358.345821,0.00032877,7]
[423346385,1780065085000,-655.179664,0.00032877,7]
[423346380,1780065085000,-622.855709,0.00032877,7]
[423346378,1780065085000,-381.32602,0.00032877,7]
[423346391,1780065085000,-316.834082,0.00032877,7]
[423346463,1780065086000,-284.008587,0.00032877,7]
[423346465,1780065086000,-284.008587,0.00032877,7]
[423346464,1780065086000,-284.008587,0.00032877,7]
[423346462,1780065086000,-284.008587,0.00032877,7]
[423346460,1780065086000,-425.0,0.00032877,7]
[423346461,1780065086000,-425.0,0.00032877,7]
[423346470,1780065086000,-368.223987,0.00032877,7]
[423346469,1780065086000,-284.008587,0.00032877,7]
[423346458,1780065086000,-425.0,0.00032877,7]
[423346451,1780065086000,-425.0,0.00032877,7]
[423346459,1780065086000,-169.654847,0.00032877,7]
[423346466,1780065086000,-368.223987,0.00032877,7]
[423346480,1780065086000,-241.246341,0.00032877,7]
[423346468,1780065086000,-284.008587,0.00032877,7]
[423346472,1780065086000,-284.008587,0.00032877,7]
[423346482,1780065086000,-151.000481,0.00032877,7]
[423346471,1780065086000,-368.223987,0.00032877,7]
[423346473,1780065086000,-284.008587,0.00032877,7]
[423346476,1780065086000,-995.45770694,0.00032877,2]
[423346474,1780065086000,-368.223987,0.00032877,7]
[423346477,1780065086000,-368.223987,0.00032877,7]
[423346475,1780065086000,-368.223987,0.00032877,7]
[423346479,1780065086000,-241.246341,0.00032877,7]
[423346481,1780065086000,-241.246341,0.00032877,7]
[423346478,1780065086000,-368.223987,0.00032877,7]
[423346454,1780065086000,-151.0,0.00032877,7]